Cogmind - Beta 15 @@@ ROGUE MODE // 2025.09.30 @ 17:28:09 Player: Figgis Result: Destroyed by as-57412 with Assembled Blade Performance ------------- Evolutions (0) 0 Regions Visited (3) 600 Robots Destroyed (27) 135 Value Destroyed (431) 431 Prototype IDs (3) 60 Alien Tech Used (0) 0 Bonus (89) 89 TOTAL SCORE: 1315 Bonus ------- Follower Combat Kills 110 Friendly Fire -21 Cogmind --------- Core Integrity 0/250 Matter 291/300 Energy 100/100 System Corruption 0% Temperature Cool (0) Movement Walking (190) Ox1 Location -10/Exiles Parts ------- > --- POWER (1) -------- (None) > --- PROPULSION (2) --- Aluminum Leg Improved Aluminum Leg > --- UTILITY (2) ------ Large Storage Unit Thief Drone Bay (3/3) > --- WEAPON (2) ------- (None) > --- INVENTORY (15) --- Ion Engine Reinforced Fission Core Aluminum Leg Improved Aluminum Leg High-capacity Storage Unit ECM Suite Propulsion Shielding Light Assault Rifle Light Assault Rifle Light Assault Rifle 8R-AWN's Boregun 8R-AWN's Boregun Battle Cannon Mining Laser Peak State ------------ > --- POWER ------------ Light Ion Engine > --- PROPULSION ------- Aluminum Leg Improved Aluminum Leg > --- UTILITY ---------- Large Storage Unit Thief Drone Bay > --- WEAPON ----------- Light Assault Rifle Light Assault Rifle > --- INVENTORY -------- Ion Engine Reinforced Fission Core Aluminum Leg Improved Aluminum Leg High-capacity Storage Unit ECM Suite Propulsion Shielding Light Assault Rifle Light Assault Rifle Light Assault Rifle 8R-AWN's Boregun 8R-AWN's Boregun Battle Cannon Mining Laser [Rating: 17] Favorites ----------- Power Light Ion Engine Engine Light Ion Engine Propulsion Improved Aluminum Leg Treads Light Treads Leg Improved Aluminum Leg Utility Propulsion Shielding Device Improved Terrain Scanner Storage Large Storage Unit Protection Propulsion Shielding Weapon Light Assault Rifle Energy Gun Small Laser Ballistic Gun Light Assault Rifle Special Weapon Mining Laser Build | -11 -10 -10 -10 ------- Run | Yrd Mat Min Exi Slots Evolved . | . . . . Power . | . . . . Propulsion . | . . . . Utility . | . . . . Weapon . | . . . . Parts Attached 22 | 6 13 2 1 Power 4 | 1 3 . . Engine 4 | 1 3 . . Core . | . . . . Reactor . | . . . . Propulsion 8 | 2 4 1 1 Treads 2 | 2 . . . Leg 6 | . 4 1 1 Wheel . | . . . . Hover . | . . . . Flight . | . . . . Utility 6 | 1 4 1 . Device 2 | . 1 1 . Storage 3 | 1 2 . . Processor . | . . . . Hackware . | . . . . Protection 1 | . 1 . . Artifact . | . . . . Weapon 4 | 2 2 . . Energy Gun 1 | 1 . . . Energy Cannon . | . . . . Ballistic Gun 2 | 1 1 . . Ballistic Cannon . | . . . . Launcher . | . . . . Special Weapon 1 | . 1 . . Impact Weapon . | . . . . Slashing Weapon . | . . . . Piercing Weapon . | . . . . Special Melee Weapon . | . . . . Unidentified Prototypes 1 | . . 1 . Parts Lost 7 | . 4 . 3 Power 2 | . 1 . 1 Propulsion 2 | . 2 . . Utility 1 | . 1 . . Weapon 2 | . . . 2 Highest Loss Streak 3 | . 2 . 3 To Critical Strikes . | . . . . Average Backups 10 | 3 8 13 12 Power 2 | 1 2 3 2 Propulsion 1 | . 1 1 2 Utility 1 | . . 2 3 Weapon 4 | 1 3 6 5 Tool/Special . | . . . . Unused Backups 16 | . 1 1 14 Power 6 | . . . 6 Propulsion 2 | . . 1 1 Utility 2 | . . . 2 Weapon 6 | . 1 . 5 Tool/Special . | . . . . Average Slot Usage (%) 99 | . 98 100 99 Engine 14 | . 14 14 14 Leg 27 | . 25 28 28 Device 4 | . 9 . 1 Storage 14 | . 14 14 14 Protection 9 | . 3 13 12 Energy Gun 2 | . 5 . . Ballistic Gun 25 | . 20 28 27 Peak Build Rating 17 | 6 12 15 17 Average Rating 9 | 5 10 9 10 On Entrance 6 | . 6 9 10 Naked Turns . | . . . . Heaviest Build 29 | 10 26 29 29 Greatest Support 40 | 40 40 23 23 Greatest Overweight (x) 3 | . 3 1 1 Average Overweight (x) . | . . 1 1 Largest Inventory Capacity 15 | 8 15 15 15 Average Capacity 12 | 7 10 15 15 Most Carried 15 | 5 12 15 15 Average Carried 10 | 3 8 13 12 Final Capacity 15 | 8 15 15 15 Final Carried 15 | 5 12 15 14 Class Distribution -------------------- 88% | Mutant 11% | Scavenger-Mutant Dominant Class ---------------- Mutant | -10/Materials Mutant | -10/Mines Mutant | -10/Exiles Resources | -11 -10 -10 -10 ----------- Run | Yrd Mat Min Exi Matter Collected 580 | 275 259 46 . Remotely . | . . . . Salvage Created 829 | 233 596 . . Parts 52 | 15 37 . . Haulers Intercepted 2 | . 2 . . Recyclers Shooed . | . . . . Parts Field Recycled . | . . . . Retrieved Matter . | . . . . Parts Self-Destructed . | . . . . Prevented . | . . . . Kills | -11 -10 -10 -10 ------- Run | Yrd Mat Min Exi Combat Hostiles Destroyed 17 | . 17 . . Guns 17 | . 17 . . Classes Destroyed 7 | 3 4 . . Worker 2 | 2 . . . Tunneler 4 | 4 . . . Hauler 2 | . 2 . . Recycler 1 | 1 . . . Watcher 1 | . 1 . . Swarmer 9 | . 9 . . Grunt 8 | . 8 . . Best Kill Streak 5 | 3 5 . . Combat Bots Only 5 | . 5 . . Max Kills in Single Turn 1 | 1 1 . . Gunslinging . | . . . . Exploded . | . . . . Melee . | . . . . Uniques/NPCs Destroyed . | . . . . Combat | -11 -10 -10 -10 -------- Run | Yrd Mat Min Exi Hostile Shots Fired 142 | . 117 9 16 Missed 37 | . 28 2 7 Hits 105 | . 89 7 9 Melee 5 | . . . 5 Projectile 100 | . 89 7 4 Critical Strikes 1 | . 1 . . Damage Taken 1155 | . 858 106 191 Core 280 | . 217 17 46 Absorbed by Shields . | . . . . Redirected to Shielding 45 | . 33 12 . Core Remaining (%) 100 | 100 . . . Volleys Fired 99 | 15 79 3 2 Largest 2 | 2 2 2 2 Hottest 100 | 60 100 40 40 Shots Fired 193 | 30 153 6 4 Gun 189 | 30 149 6 4 Cannon . | . . . . Launcher . | . . . . Special 4 | . 4 . . Kinetic 149 | 15 124 6 4 Thermal 44 | 15 29 . . Explosive . | . . . . Electromagnetic . | . . . . Robot Hit Streak 13 | 6 13 3 2 Robot Miss Streak 4 | 3 4 2 2 Penetration Max . | . . . . Secondary Targets 5 | . 5 . . Max Gunslinging Chain 1 | . 1 . . Shots Hit Robots 120 | 13 102 3 2 Core Hits 51 | 10 40 1 . Critical Kills . | . . . . Critical Parts Destroyed 2 | . 2 . . Critical Strikes 3 | . 2 . 1 Destroy 3 | . 2 . 1 Melee Attacks . | . . . . Impact . | . . . . Slashing . | . . . . Piercing . | . . . . Sneak Attacks . | . . . . Combat Hostiles . | . . . . Follow-up Attacks . | . . . . Damage Inflicted 1027 | 121 863 26 17 Guns 1027 | 121 863 26 17 Cannons . | . . . . Explosions . | . . . . Melee . | . . . . Ramming . | . . . . Kinetic 782 | 32 707 26 17 Thermal 245 | 89 156 . . Explosive . | . . . . Electromagnetic . | . . . . Impact . | . . . . Slashing . | . . . . Piercing . | . . . . Highest Corruption . | . . . . Average Corruption . | . . . . Corruption Purged . | . . . . Corruption Blocked . | . . . . Overload Shots . | . . . . Overflow Damage . | . . . . Projectiles . | . . . . Explosions . | . . . . Melee . | . . . . Knockbacks . | . . . . Impact . | . . . . Kinetic . | . . . . Secondary . | . . . . Self-Inflicted Damage . | . . . . Shots . | . . . . Rammed . | . . . . Targets Rammed . | . . . . Kicked . | . . . . Crushed . | . . . . Highest Temperature 58 | 40 58 18 2 Average Temperature 18 | 17 18 12 2 Received Heat Transfer 385 | . 282 63 40 Siege Activations . | . . . . Martial Activations . | . . . . Shielding Activations . | . . . . Robots Disrupted . | . . . . Combat Hostiles . | . . . . Robots Corrupted . | . . . . Combat Hostiles . | . . . . Parts Fried . | . . . . Impact Corruptions . | . . . . Robots Melted . | . . . . Combat Hostiles . | . . . . Parts Melted . | . . . . Heat Transferred 550 | 200 350 . . Parts Sabotaged . | . . . . Parts Stolen . | . . . . Parts Stripped . | . . . . Power Chain Reactions . | . . . . Alert | -11 -10 -10 -10 ------- Run | Yrd Mat Min Exi Maximum Alert Level . | . . . . Low Security (%) 100 | 100 100 100 . Level 1 . | . . . . Level 2 . | . . . . Level 3 . | . . . . Level 4 . | . . . . Level 5 . | . . . . High Security . | . . . . Max Security . | . . . . Peak Influence 156 | 15 156 104 . Initial 48 | . 3 48 . Average 17 | 2 33 7 . Influence Increases 603 | 35 460 108 . Destroy 0b10 Robot/C 420 | . 340 80 . Destroy 0b10 Robot/NC 50 | 35 15 . . Destroy Leader 86 | . 76 10 . Allied During Kill 18 | . . 18 . Successful Hack 25 | . 25 . . Destroy Structure 4 | . 4 . . Influence Decreases 603 | 30 339 142 92 Entered New Map 172 | . 2 78 92 Time Decay 400 | 30 306 64 . Lost Part 31 | . 31 . . Squads Dispatched 5 | . 4 1 . Investigation 3 | . 3 . . Extermination . | . . . . Reinforcement 1 | . 1 . . Assault 1 | . . 1 . Garrison . | . . . . Intercept . | . . . . Searches Triggered . | . . . . Construction Impeded . | . . . . Haulers Reinforced . | . . . . Active Scanning Responses . | . . . . Cargo Convoy Interrupts . | . . . . Stealth | -11 -10 -10 -10 --------- Run | Yrd Mat Min Exi Distress Signals . | . . . . Communications Jammed . | . . . . Distress Signals . | . . . . Times Spotted 35 | . 22 5 8 Peak Tracking Total 9 | . 5 4 9 Tactical Retreats . | . . . . Traps | -11 -10 -10 -10 ------- Run | Yrd Mat Min Exi Traps Triggered 3 | . 3 . . Indirectly . | . . . . Trap Hack Attempts . | . . . . Triggered . | . . . . Disarmed . | . . . . Reprogrammed . | . . . . Reused . | . . . . Traps Extracted . | . . . . Installed . | . . . . Triggered . | . . . . Machines | -11 -10 -10 -10 ---------- Run | Yrd Mat Min Exi Machines Disabled . | . . . . Max in Single Turn . | . . . . Machines Repaired . | . . . . Machines Dismantled . | . . . . Machines Sabotaged . | . . . . Overloaded Fab Kills . | . . . . Hacking | -11 -10 -10 -10 --------- Run | Yrd Mat Min Exi Machines Accessed 5 | . 4 1 . Terminals 4 | . 4 . . Fabricators . | . . . . Repair Stations . | . . . . Recycling Units . | . . . . Scanalyzers . | . . . . Garrison Access . | . . . . Total Hacks 13 | . 12 1 . Successful 6 | . 5 1 . Failed 6 | . 6 . . Catastrophic . | . . . . Database Lockouts 1 | . 1 . . Manual 7 | . 7 . . Terminals 12 | . 12 . . Fabricators . | . . . . Repair Stations . | . . . . Recycling Units . | . . . . Scanalyzers . | . . . . Garrison Access . | . . . . Terminal Hacks 6 | . 5 1 . Robot Analysis 3 | . 3 . . Prototype ID Bank 1 | . 1 . . Open Door 1 | . . 1 . Registered Components 1 | . 1 . . Fabricator Hacks . | . . . . Repair Station Hacks . | . . . . Recycling Unit Hacks . | . . . . Scanalyzer . | . . . . Garrison Access Hacks . | . . . . Unauthorized Hacks . | . . . . Terminals . | . . . . Fabricators . | . . . . Repair Stations . | . . . . Recycling Units . | . . . . Scanalyzers . | . . . . Garrison Access . | . . . . Data Cores Recovered . | . . . . Used . | . . . . Hacking Detections 4 | . 4 . . Full Trace Events 1 | . 1 . . Feedback Events . | . . . . Feedback Blocked . | . . . . Robot Schematics Acquired . | . . . . Robots Built . | . . . . Authchips . | . . . . Time . | . . . . Total Robot Build Rating . | . . . . Part Schematics Acquired . | . . . . Parts Built . | . . . . Authchips . | . . . . Time . | . . . . Total Part Build Rating . | . . . . Parts Repaired . | . . . . Time . | . . . . Parts Recycled . | . . . . Recycled Matter . | . . . . Retrieved Matter . | . . . . Retrieved Components . | . . . . Parts Scanalyzed . | . . . . Part Schematics Acquired . | . . . . Parts Damaged . | . . . . Bothacking | -11 -10 -10 -10 ------------ Run | Yrd Mat Min Exi Used RIF Installer . | . . . . Robots Hacked . | . . . . Non-combat . | . . . . Combat . | . . . . Robot Hacks Applied . | . . . . Relay Couplers Released . | . . . . Fabnet Peak Effective % . | . . . . Robots Rewired . | . . . . Allies Hacked . | . . . . Hacks Repelled . | . . . . Allies | -11 -10 -10 -10 -------- Run | Yrd Mat Min Exi Total Allies 4 | . . 4 . Largest Group 4 | . . 4 3 Highest-Rated Group 71 | . . 71 63 Highest-Rated Ally 31 | . . 31 31 Total Orders 1 | . . . 1 STAY 1 | . . . 1 Ally Attacks 26 | . . 12 14 Total Damage 253 | . . 196 57 Kills 4 | . . 4 . Allies Corrupted . | . . . . Allies Melted . | . . . . Intel | -11 -10 -10 -10 ------- Run | Yrd Mat Min Exi Active Infowar (turns) 694 | . 694 . . Terrain 694 | . 694 . . Robot Analysis Total 3 | . 3 . . Derelict Logs Recovered 1 | . . 1 . Drone Launches 3 | . . . 3 Drone Recoveries 3 | . . . 3 Exploration | -11 -10 -10 -10 ------------- Run | Yrd Mat Min Exi Turns Passed 2776 | 179 1011 1290 296 Spaces Moved 1380 | 97 536 613 134 Core 38 | 34 4 . . Treads 93 | 63 30 . . Legs 1249 | . 502 613 134 Wheels . | . . . . Hover . | . . . . Flight . | . . . . Fastest Speed 50 | 50 120 190 190 Average Speed 161 | 121 129 190 190 Slowest Speed 200 | 160 200 190 190 Overloaded Moves . | . . . . Propulsion Burnouts . | . . . . Robots Hopped . | . . . . Potential Cave-ins . | . . . . Cave-ins Triggered . | . . . . Exploration Rate (%) 48 | 6 77 99 12 Regions Visited 3 Branch Regions 2 Pre-discovered Areas 1 | . . 1 . Known Exits Taken . | . . . . Unknown Exits Taken 3 | 1 1 1 . Scrap Searched 1 | . . 1 . Spaces Dug 3 | . 3 . . Terrain Destroyed 4 | . 4 . . Melee . | . . . . Projectile 4 | . 4 . . AOE . | . . . . Terrain Rammed . | . . . . Walls Destroyed . | . . . . Machines Disabled . | . . . . Actions | -11 -10 -10 -10 --------- Run | Yrd Mat Min Exi Total 1762 | 131 720 735 176 Wait 208 | 4 70 108 26 Move 1377 | 96 535 612 134 Hop . | . . . . Pick Up 34 | 10 15 5 4 Fast Attach 2 | 1 1 . . Attach 12 | 5 7 . . Detach . | . . . . Swap 13 | . 7 4 2 Drop 17 | . 6 3 8 Fire 99 | 15 79 3 2 Melee . | . . . . Ram . | . . . . Kick . | . . . . Crush . | . . . . Escape Stasis . | . . . . Rewire . | . . . . Trap . | . . . . Miscellaneous . | . . . . Route ------- -11/Scrapyard -10/Materials (discovered 4 exits: [*Mat x2] / *Min / [Sub]) -10/Mines (discovered 4 exits: [*Mat x2] / [*Exi] / [*Sub]) -10/Exiles (discovered 1 exit: [*Min]) History --------- Turn | Location | Event 8 | -11/Scrapyard | Discovered new exit (range 16) 180 | -11/Scrapyard | Entered Materials 256 | -10/Materials | Discovered new exit (range 16) 318 | -10/Materials | Build established: Mutant 522 | -10/Materials | Central database locked down 853 | -10/Materials | Build established: Scavenger-Mutant 865 | -10/Materials | Discovered new exit (range 3) 973 | -10/Materials | Core integrity fell below 50% 1016 | -10/Materials | Discovered new exit (range 7) 1053 | -10/Materials | Discovered new exit (range 14) 1082 | -10/Materials | Core integrity fell below 20% 1183 | -10/Materials | Build established: Mutant 1191 | -10/Materials | Entered Mines 1346 | -10/Mines | Discovered new exit (range 11) 1423 | -10/Mines | Learned location of Mines (-9) 1552 | -10/Mines | Found the Drone Emporium 1560 | -10/Mines | Found Prototype Device 1561 | -10/Mines | Identified Thief Drone Bay 1775 | -10/Mines | Discovered new exit (range 5) 2056 | -10/Mines | Assisted by bots powering up and referring to "LRC-V3" 2172 | -10/Mines | A weapon hastily lodged in a ceiling crevice suddenly fell to the ground 2261 | -10/Mines | Discovered new exit (range 6) 2323 | -10/Mines | Met a Derelict testing a Signal Generator 2469 | -10/Mines | Deemed a non-threat by the Exiles lab entrance 2470 | -10/Mines | Discovered new exit (range 5) 2481 | -10/Mines | Entered Exiles 2481 | -10/Exiles | Accompanied by 3 allies 2510 | -10/Exiles | Discovered new exit (range 15) 2718 | -10/Exiles | Met 8R-AWN 2753 | -10/Exiles | Attacked by the Exiles 2777 | -10/Exiles | Destroyed by as-57412 with Assembled Blade Last Messages --------------- 02756_ Thief Drone delivers Prototype Ballistic Gun. 02756_ Thief Drone retrieved by Thief Drone Bay (repair cost: 2). 02757_ 8R-AWN suffers critical hit (Destroy). 02757_ 8R-AWN Rnf. Fission Core ripped off. 02758_ HV Slug penetrates 9M-LU6(g). 02758_ 9M-LU6(g) suffers critical hit (Destroy). 02758_ HV Slug penetrates Machine. 02759_ Thief Drone delivers Rnf. Fission Core. 02759_ Thief Drone retrieved by Thief Drone Bay (repair cost: 2). 02759_ HV Slug penetrates Machine. 02759_ Machine disabled. 02759_ HV Slug penetrates Wall. 02761_ HV Slug penetrates as-95417. 02761_ as-95417 suffers critical hit (Destroy). 02762_ 8R-AWN Prototype Ballistic Gun ripped off. 02763_ 9M-LU6(g) Carbon-fiber Leg severed. 02764_ Thief Drone delivers Prototype Ballistic Gun. 02764_ Thief Drone retrieved by Thief Drone Bay (repair cost: 9). 02769_ Lgt. Assault Rifle destroyed. 02774_ Lgt. Ion Engine destroyed. Map ----- +----------------------------------------------------+ | ?????????????????????????????????????????????????? | | ?????????????????????????????????????????????????? | | ?????????????????????????????????????????????????? | | ?????????????????????????????????????????????????? | | ?????????????????????????????????????????????????? | | ?????????????????????????????????????????????????? | | ?????????????????????????????????????????????????? | | ?????????????????????????????????????????????????? | | ?????????????????????????????????????????????????? | | ??????????????????????????????????????###????????? | | ????????????????????????????????????## #????????? | | ???????????????????????????????????## #????????? | | ???????????????????????????????????# < #????????? | | ???????????????????????????????????# [ #????????? | | ???????????????????????????????????#**[ #????????? | | ??????????????????????????????????## ##????????? | | ?????????????????????????????????## ##????????? | | ?????????????????????????????????# #????????? | | ?????????????#####???????????????# #????????? | | ????????????## #??????????????## #????????? | | ????????????#[=! #?????????????## # #????????? | | ???????????## % ##????????????# ###????????? | | ?????????### ###????????### ##??????????? | | ?????????# ########## #???????????? | | ?????????# #""""## ##???????????? | | ????????# a aaa@ ##???????????? | | ????? ## a #???????????? | | ???? #?## a ##??????????? | | ??? ""??#"""""#### ###????????? | | ?? #"""#??#######??#### ###??????? | | ?? #####???????????????##### ##?????? | | ??? #????????????????????????### #?????? | | ??? #???????????????????????????### #?????? | | ???????????????????????????????????### #?????? | | ????????????????????????????????????#" ##????? | | ????????????????????????????????????#### ###??? | | ???????????????????????????????????????# ##?? | | ???????????????????????????????????????## ### | | ????????????????????????????????????????### **# | | ??????????????????????????????????????????# *## | | ??????????????????????????????????????????## ##? | | ???????????????????????????????????????????#####?? | | ?????????????????????????????????????????????????? | | ?????????????????????????????????????????????????? | | ?????????????????????????????????????????????????? | | ?????????????????????????????????????????????????? | | ?????????????????????????????????????????????????? | | ?????????????????????????????????????????????????? | | ?????????????????????????????????????????????????? | | ?????????????????????????????????????????????????? | +----------------------------------------------------+ Best States ------------- Heat Dissipation 25 Energy Generation 10 Energy Capacity 250 Matter Stores 300 Matter Capacity 300 Sight Range 16 Terrain Scan Range 16 Terrain Scan Density 10 Propulsion Shielding 33 Evasion (%) 55 Recoil Reduction 2 Item Schematics ----------------- None Robot Schematics ------------------ None Fabricated ------------ Nothing Repaired ---------- Nothing Alien Tech Used ----------------- None Achievements -------------- None Challenges ------------ None Game ------ Seed ClaymoresRagnarokStabilizer Manual? 0 Play Time 00:16:04 Cumulative 194.1 hours Start 2025.09.30 @ 16:53:29 End 2025.09.30 @ 17:28:09 Sessions 1 Manual Loads 0 Difficulty Rogue Special Mode None Game No. 309 Rogue 306 Adventurer 3 Explorer 0 Win Type - Total 1 Types 1/0/0/0/0/0/0/0/0/0 Lore% 65 Gallery% 60 Achievement% 47 Wizard Run 0 Options --------- Layout 0 ASCII 0 Keyboard 0 Movement Mouse Keybinds 0 Fullscreen 2 Font 18/SmallcapsGlow Map View 76x50 Zoom Use 0% Tactical HUD 1 Map Filters NONE Filters NONE Steam 1 RUN: d03d27d3-3cd9-4974-8dea-cd5cee67761c